[Event "*** SCC Grand Prix: Titled Tuesday Blitz"]
[Site "Chess.com"]
[Date "2020.10.13"]
[Round "9"]
[White "Alexandercs432"]
[Black "Sesleria"]
[Result "1/2-1/2"]
[WhiteElo "2136"]
[BlackElo "2028"]
[TimeControl "180+1"]
[EndTime "11:47:10 PDT"]
[Termination "Game drawn by 50-move rule"]

1. e4 {[%clk 0:02:54.7]} 1... c5 {[%clk 0:03:00]} 2. Nf3 {[%clk 0:02:54.8]} 2...
d6 {[%clk 0:03:00.3]} 3. d4 {[%clk 0:02:55.4]} 3... cxd4 {[%clk 0:03:00.8]} 4.
Nxd4 {[%clk 0:02:56.3]} 4... Nf6 {[%clk 0:03:01.3]} 5. Nc3 {[%clk 0:02:56.8]}
5... a6 {[%clk 0:03:01.7]} 6. Be3 {[%clk 0:02:57.3]} 6... e6 {[%clk 0:03:02]} 7.
g4 {[%clk 0:02:57.4]} 7... h5 {[%clk 0:03:00.9]} 8. g5 {[%clk 0:02:57.2]} 8...
Ng4 {[%clk 0:03:01.2]} 9. Bc1 {[%clk 0:02:29.3]} 9... Nc6 {[%clk 0:02:57.2]} 10.
Nxc6 {[%clk 0:02:11.1]} 10... bxc6 {[%clk 0:02:56.7]} 11. f3 {[%clk 0:02:11.4]}
11... Ne5 {[%clk 0:02:54.2]} 12. Be3 {[%clk 0:02:09.7]} 12... Rb8 {[%clk
0:02:42.8]} 13. Rb1 {[%clk 0:02:07.3]} 13... Be7 {[%clk 0:02:22]} 14. h4 {[%clk
0:02:00]} 14... g6 {[%clk 0:02:17.7]} 15. Be2 {[%clk 0:01:59.9]} 15... c5 {[%clk
0:02:14.5]} 16. O-O {[%clk 0:01:55.4]} 16... O-O {[%clk 0:02:11.6]} 17. f4
{[%clk 0:01:49.9]} 17... Nc6 {[%clk 0:02:08.1]} 18. Bf3 {[%clk 0:01:46.3]} 18...
e5 {[%clk 0:01:45.3]} 19. f5 {[%clk 0:01:38]} 19... gxf5 {[%clk 0:01:40.1]} 20.
Bxh5 {[%clk 0:01:38]} 20... f4 {[%clk 0:01:37.4]} 21. Bf2 {[%clk 0:01:34.6]}
21... Bh3 {[%clk 0:01:30.1]} 22. Re1 {[%clk 0:01:31.2]} 22... Bxg5 {[%clk
0:01:29.2]} 23. Kh1 {[%clk 0:01:23.4]} 23... Bxh4 {[%clk 0:01:13.9]} 24. Rg1+
{[%clk 0:01:21.3]} 24... Kh7 {[%clk 0:01:13.1]} 25. Qe2 {[%clk 0:01:10]} 25...
Qf6 {[%clk 0:00:49.3]} 26. Nd5 {[%clk 0:01:06.3]} 26... Qh6 {[%clk 0:00:46.6]}
27. Bxh4 {[%clk 0:01:03.9]} 27... Nd4 {[%clk 0:00:42.9]} 28. Nf6+ {[%clk
0:00:56.9]} 28... Qxf6 {[%clk 0:00:33.9]} 29. Bxf6 {[%clk 0:00:55.6]} 29... Nxe2
{[%clk 0:00:33.5]} 30. Bxe2 {[%clk 0:00:56.5]} 30... Rg8 {[%clk 0:00:32.3]} 31.
Rxg8 {[%clk 0:00:53.7]} 31... Rxg8 {[%clk 0:00:33.2]} 32. Rg1 {[%clk 0:00:53.9]}
32... Rg6 {[%clk 0:00:28.2]} 33. Rxg6 {[%clk 0:00:51.4]} 33... Kxg6 {[%clk
0:00:27.3]} 34. Be7 {[%clk 0:00:50.6]} 34... Be6 {[%clk 0:00:26]} 35. Bxd6
{[%clk 0:00:48.9]} 35... Bxa2 {[%clk 0:00:26]} 36. Bxe5 {[%clk 0:00:42.3]} 36...
Bb1 {[%clk 0:00:22.4]} 37. Bd1 {[%clk 0:00:24.6]} 37... f3 {[%clk 0:00:20.6]}
38. Kg1 {[%clk 0:00:23.5]} 38... f5 {[%clk 0:00:19.6]} 39. exf5+ {[%clk
0:00:22.1]} 39... Kxf5 {[%clk 0:00:20.5]} 40. Bd6 {[%clk 0:00:22.1]} 40... c4
{[%clk 0:00:20.6]} 41. Kf2 {[%clk 0:00:22.3]} 41... Ke4 {[%clk 0:00:21.1]} 42.
Bxf3+ {[%clk 0:00:21.7]} 42... Kd4 {[%clk 0:00:20.3]} 43. Bd1 {[%clk 0:00:20.8]}
43... Ba2 {[%clk 0:00:17.2]} 44. Bb8 {[%clk 0:00:19.4]} 44... Bb1 {[%clk
0:00:15.2]} 45. Ke1 {[%clk 0:00:19.2]} 45... c3 {[%clk 0:00:14.6]} 46. b3 {[%clk
0:00:18.7]} 46... Ke3 {[%clk 0:00:13]} 47. Ba7+ {[%clk 0:00:18.3]} 47... Ke4
{[%clk 0:00:13]} 48. Ke2 {[%clk 0:00:17.6]} 48... Kd5 {[%clk 0:00:12.9]} 49. Kd3
{[%clk 0:00:17.5]} 49... Kc6 {[%clk 0:00:13.1]} 50. Kxc3 {[%clk 0:00:17.3]}
50... Kb5 {[%clk 0:00:14]} 51. Bd4 {[%clk 0:00:16.6]} 51... a5 {[%clk
0:00:14.9]} 52. Bf6 {[%clk 0:00:16]} 52... a4 {[%clk 0:00:15.8]} 53. Be2+ {[%clk
0:00:16.4]} 53... Ka5 {[%clk 0:00:15.7]} 54. bxa4 {[%clk 0:00:15.8]} 54... Kxa4
{[%clk 0:00:16.1]} 55. Kb2 {[%clk 0:00:14.6]} 55... Bxc2 {[%clk 0:00:15.4]} 56.
Kxc2 {[%clk 0:00:14.8]} 56... Kb4 {[%clk 0:00:16.3]} 57. Bd3 {[%clk 0:00:14.1]}
57... Kc5 {[%clk 0:00:16.5]} 58. Bc3 {[%clk 0:00:13.8]} 58... Kd5 {[%clk
0:00:16.6]} 59. Kd2 {[%clk 0:00:14.7]} 59... Kc5 {[%clk 0:00:16.7]} 60. Ke3
{[%clk 0:00:14.8]} 60... Kd5 {[%clk 0:00:17.2]} 61. Bd4 {[%clk 0:00:14.4]} 61...
Kd6 {[%clk 0:00:17.5]} 62. Be4 {[%clk 0:00:14.2]} 62... Ke6 {[%clk 0:00:18.1]}
63. Kf4 {[%clk 0:00:13.5]} 63... Kd6 {[%clk 0:00:19]} 64. Be5+ {[%clk
0:00:13.5]} 64... Ke6 {[%clk 0:00:19.9]} 65. Bb8 {[%clk 0:00:12.1]} 65... Ke7
{[%clk 0:00:20.8]} 66. Ke5 {[%clk 0:00:11.9]} 66... Kd7 {[%clk 0:00:21.1]} 67.
Bd5 {[%clk 0:00:11.8]} 67... Kc8 {[%clk 0:00:21.5]} 68. Bd6 {[%clk 0:00:11.7]}
68... Kd7 {[%clk 0:00:22.4]} 69. Be6+ {[%clk 0:00:11]} 69... Kd8 {[%clk
0:00:23]} 70. Kd5 {[%clk 0:00:10.9]} 70... Ke8 {[%clk 0:00:22.8]} 71. Bf5 {[%clk
0:00:07]} 71... Kd8 {[%clk 0:00:23.2]} 72. Be6 {[%clk 0:00:07.1]} 72... Ke8
{[%clk 0:00:23.5]} 73. Bc5 {[%clk 0:00:06.6]} 73... Kd8 {[%clk 0:00:24.4]} 74.
Kd6 {[%clk 0:00:06.7]} 74... Ke8 {[%clk 0:00:24.2]} 75. Bb4 {[%clk 0:00:06.7]}
75... Kd8 {[%clk 0:00:24.6]} 76. Bc3 {[%clk 0:00:06.8]} 76... Ke8 {[%clk
0:00:24.9]} 77. Bd4 {[%clk 0:00:07.7]} 77... Kd8 {[%clk 0:00:25.2]} 78. Be3
{[%clk 0:00:08.6]} 78... Ke8 {[%clk 0:00:25.4]} 79. Bd5 {[%clk 0:00:09.5]} 79...
Kd8 {[%clk 0:00:25.9]} 80. Bg5+ {[%clk 0:00:09.4]} 80... Ke8 {[%clk 0:00:26.8]}
81. Bf6 {[%clk 0:00:08.6]} 81... Kf8 {[%clk 0:00:26.9]} 82. Be6 {[%clk
0:00:07.8]} 82... Ke8 {[%clk 0:00:27.2]} 83. Bd5 {[%clk 0:00:07.1]} 83... Kf8
{[%clk 0:00:27.5]} 84. Ke6 {[%clk 0:00:05.9]} 84... Ke8 {[%clk 0:00:28.4]} 85.
Bc6+ {[%clk 0:00:05.9]} 85... Kf8 {[%clk 0:00:28.8]} 86. Bd5 {[%clk 0:00:04.4]}
86... Ke8 {[%clk 0:00:29.1]} 87. Bc4 {[%clk 0:00:04.3]} 87... Kf8 {[%clk
0:00:29.2]} 88. Be5 {[%clk 0:00:04.1]} 88... Ke8 {[%clk 0:00:29.6]} 89. Bd6
{[%clk 0:00:04.2]} 89... Kd8 {[%clk 0:00:30]} 90. Bd5 {[%clk 0:00:03.2]} 90...
Ke8 {[%clk 0:00:30.4]} 91. Bc6+ {[%clk 0:00:03.2]} 91... Kd8 {[%clk 0:00:30.7]}
92. Kd5 {[%clk 0:00:03]} 92... Kc8 {[%clk 0:00:30.6]} 93. Kc5 {[%clk 0:00:02]}
93... Kd8 {[%clk 0:00:31.1]} 94. Kb6 {[%clk 0:00:01.8]} 94... Kc8 {[%clk
0:00:31.6]} 95. Kc5 {[%clk 0:00:01.5]} 95... Kd8 {[%clk 0:00:32.1]} 96. Be5
{[%clk 0:00:02.2]} 96... Kc8 {[%clk 0:00:32.5]} 97. Bd4 {[%clk 0:00:03.1]} 97...
Kd8 {[%clk 0:00:33]} 98. Be5 {[%clk 0:00:04]} 98... Kc8 {[%clk 0:00:33.4]} 99.
Bf4 {[%clk 0:00:04]} 99... Kd8 {[%clk 0:00:33.7]} 100. Kd6 {[%clk 0:00:04]}
100... Kc8 {[%clk 0:00:34.1]} 101. Be3 {[%clk 0:00:04.1]} 101... Kd8 {[%clk
0:00:34.6]} 102. Bd5 {[%clk 0:00:04]} 102... Kc8 {[%clk 0:00:34.8]} 103. Be6+
{[%clk 0:00:04.3]} 103... Kd8 {[%clk 0:00:35.2]} 104. Bg5+ {[%clk 0:00:04.3]}
104... Ke8 {[%clk 0:00:34.8]} 105. Bf6 {[%clk 0:00:04.2]} 105... Kf8 {[%clk
0:00:35]} 106. Be5 {[%clk 0:00:05.1]} 1/2-1/2

[Event "*** SCC Grand Prix: Titled Tuesday Blitz"]
[Site "Chess.com"]
[Date "2020.10.13"]
[Round "9"]
[White "Natalya_Buksa"]
[Black "hungrycaterpillar4"]
[Result "1/2-1/2"]
[WhiteElo "2526"]
[BlackElo "2683"]
[TimeControl "180+1"]
[EndTime "11:47:23 PDT"]
[Termination "Game drawn by repetition"]

1. d4 {[%clk 0:03:00.9]} 1... d5 {[%clk 0:02:49.5]} 2. Nc3 {[%clk 0:03:00.6]}
2... Nf6 {[%clk 0:02:46.5]} 3. Bf4 {[%clk 0:03:00.6]} 3... e6 {[%clk 0:02:41.4]}
4. e3 {[%clk 0:02:59.7]} 4... Bb4 {[%clk 0:02:41]} 5. Bd3 {[%clk 0:02:59.4]}
5... O-O {[%clk 0:02:40.2]} 6. Ne2 {[%clk 0:02:59.4]} 6... c5 {[%clk 0:02:40.5]}
7. dxc5 {[%clk 0:02:59.1]} 7... a6 {[%clk 0:02:41]} 8. Bd6 {[%clk 0:02:55.2]}
8... Re8 {[%clk 0:02:40.9]} 9. a3 {[%clk 0:02:55.7]} 9... Ba5 {[%clk 0:02:40.4]}
10. b4 {[%clk 0:02:55.3]} 10... Bc7 {[%clk 0:02:40.8]} 11. Bxc7 {[%clk
0:02:53.2]} 11... Qxc7 {[%clk 0:02:41.7]} 12. O-O {[%clk 0:02:53.6]} 12... e5
{[%clk 0:02:39.6]} 13. Ng3 {[%clk 0:02:51.2]} 13... Be6 {[%clk 0:02:32.2]} 14.
Bf5 {[%clk 0:02:49.9]} 14... Nc6 {[%clk 0:02:30.1]} 15. Bxe6 {[%clk 0:02:45.1]}
15... fxe6 {[%clk 0:02:31]} 16. Nh5 {[%clk 0:02:42.7]} 16... Nxh5 {[%clk
0:02:22.4]} 17. Qxh5 {[%clk 0:02:42.2]} 17... Rad8 {[%clk 0:02:20.6]} 18. Rad1
{[%clk 0:02:39.6]} 18... Rf8 {[%clk 0:02:15.1]} 19. Ne2 {[%clk 0:02:31]} 19...
a5 {[%clk 0:02:14.7]} 20. b5 {[%clk 0:02:26.8]} 20... Ne7 {[%clk 0:02:14.9]} 21.
b6 {[%clk 0:02:27.1]} 21... Qxc5 {[%clk 0:02:07.9]} 22. Qxe5 {[%clk 0:02:27.4]}
22... Qd6 {[%clk 0:02:08.1]} 23. Qxd6 {[%clk 0:02:15.1]} 23... Rxd6 {[%clk
0:02:09]} 24. c4 {[%clk 0:02:15.5]} 24... Rxb6 {[%clk 0:02:07.1]} 25. cxd5
{[%clk 0:02:12.9]} 25... Nxd5 {[%clk 0:02:07.6]} 26. Rd4 {[%clk 0:02:12.1]}
26... Rb2 {[%clk 0:01:57.5]} 27. Ng3 {[%clk 0:02:11.9]} 27... h6 {[%clk
0:01:54.1]} 28. h4 {[%clk 0:02:06.5]} 28... b5 {[%clk 0:01:53.4]} 29. Ne4 {[%clk
0:02:03.1]} 29... b4 {[%clk 0:01:45.4]} 30. axb4 {[%clk 0:02:01.1]} 30... axb4
{[%clk 0:01:46.3]} 31. Nc5 {[%clk 0:02:01.3]} 31... Nc3 {[%clk 0:01:26.8]} 32.
Rg4 {[%clk 0:01:39.7]} 32... h5 {[%clk 0:00:58.2]} 33. Rg5 {[%clk 0:01:22.7]}
33... Rf5 {[%clk 0:00:57.5]} 34. Nxe6 {[%clk 0:01:16.4]} 34... Rxg5 {[%clk
0:00:57.2]} 35. hxg5 {[%clk 0:01:17.3]} 35... b3 {[%clk 0:00:57]} 36. Nd4 {[%clk
0:01:17.7]} 36... Ne2+ {[%clk 0:00:51.9]} 37. Nxe2 {[%clk 0:01:00.4]} 37... Rxe2
{[%clk 0:00:52.8]} 38. Rb1 {[%clk 0:01:00.5]} 38... b2 {[%clk 0:00:52]} 39. g3
{[%clk 0:01:01]} 39... Kf7 {[%clk 0:00:48.2]} 40. Kg2 {[%clk 0:01:00.9]} 40...
Ke6 {[%clk 0:00:48.9]} 41. Kf3 {[%clk 0:00:50.8]} 41... Rc2 {[%clk 0:00:49]} 42.
g6 {[%clk 0:00:51.2]} 42... Kf5 {[%clk 0:00:48]} 43. e4+ {[%clk 0:00:50.6]}
43... Kxg6 {[%clk 0:00:48.2]} 44. Ke3 {[%clk 0:00:51]} 44... Kg5 {[%clk
0:00:48.6]} 45. f4+ {[%clk 0:00:43.4]} 45... Kg4 {[%clk 0:00:48.7]} 46. e5
{[%clk 0:00:43.9]} 46... Kxg3 {[%clk 0:00:47.8]} 47. e6 {[%clk 0:00:42.5]} 47...
Kg4 {[%clk 0:00:25.5]} 48. e7 {[%clk 0:00:35.9]} 48... Rc8 {[%clk 0:00:24.7]}
49. Rxb2 {[%clk 0:00:35.9]} 49... Kf5 {[%clk 0:00:24.3]} 50. Rg2 {[%clk
0:00:35.1]} 50... Kf6 {[%clk 0:00:24.8]} 51. Rg5 {[%clk 0:00:30.7]} 51... g6
{[%clk 0:00:25.3]} 52. Kf3 {[%clk 0:00:24.4]} 52... Re8 {[%clk 0:00:25.6]} 53.
Ra5 {[%clk 0:00:22]} 53... Rxe7 {[%clk 0:00:25.4]} 54. Ra6+ {[%clk 0:00:22.3]}
54... Re6 {[%clk 0:00:26.1]} 55. Ra5 {[%clk 0:00:22.5]} 55... Rb6 {[%clk
0:00:26.7]} 56. Rc5 {[%clk 0:00:17.5]} 56... Rb3+ {[%clk 0:00:26.8]} 57. Kg2
{[%clk 0:00:17.6]} 57... h4 {[%clk 0:00:27]} 58. Ra5 {[%clk 0:00:17.1]} 58...
Rg3+ {[%clk 0:00:25.5]} 59. Kf2 {[%clk 0:00:16]} 59... Kg7 {[%clk 0:00:22.8]}
60. Rg5 {[%clk 0:00:07.6]} 60... Rb3 {[%clk 0:00:08.1]} 61. f5 {[%clk
0:00:07.6]} 61... Kf6 {[%clk 0:00:08.6]} 62. Rxg6+ {[%clk 0:00:07]} 62... Kxf5
{[%clk 0:00:09.2]} 63. Rh6 {[%clk 0:00:07.4]} 63... Kg4 {[%clk 0:00:09.7]} 64.
Kg2 {[%clk 0:00:07.5]} 64... Rb2+ {[%clk 0:00:09.5]} 65. Kh1 {[%clk 0:00:07.9]}
65... Kh3 {[%clk 0:00:09.9]} 66. Kg1 {[%clk 0:00:05.9]} 66... Rg2+ {[%clk
0:00:08.6]} 67. Kf1 {[%clk 0:00:06.2]} 67... Rg7 {[%clk 0:00:07.1]} 68. Rf6
{[%clk 0:00:06.4]} 68... Kh2 {[%clk 0:00:07.2]} 69. Rf2+ {[%clk 0:00:06.5]}
69... Kh1 {[%clk 0:00:07.8]} 70. Rf3 {[%clk 0:00:06.9]} 70... Rg3 {[%clk
0:00:06.8]} 71. Rf4 {[%clk 0:00:07.2]} 71... h3 {[%clk 0:00:07.3]} 72. Rf8
{[%clk 0:00:07]} 72... Rg7 {[%clk 0:00:06.4]} 73. Kf2 {[%clk 0:00:07]} 73...
Rg2+ {[%clk 0:00:06.6]} 74. Kf1 {[%clk 0:00:07.2]} 74... Ra2 {[%clk 0:00:07.5]}
75. Rf7 {[%clk 0:00:06.9]} 75... Ra1+ {[%clk 0:00:07.6]} 76. Kf2 {[%clk
0:00:06.3]} 76... Ra3 {[%clk 0:00:08.2]} 77. Rf8 {[%clk 0:00:06.2]} 77... Kh2
{[%clk 0:00:08.7]} 78. Kf1 {[%clk 0:00:06.4]} 78... Ra7 {[%clk 0:00:09]} 79. Kf2
{[%clk 0:00:06.3]} 79... Ra6 {[%clk 0:00:09.6]} 80. Rf7 {[%clk 0:00:06]} 80...
Rg6 {[%clk 0:00:09.9]} 81. Rf8 {[%clk 0:00:06.2]} 81... Rg2+ {[%clk 0:00:10.3]}
82. Kf1 {[%clk 0:00:05.6]} 82... Rg1+ {[%clk 0:00:11.2]} 83. Kf2 {[%clk
0:00:05.8]} 83... Rg3 {[%clk 0:00:12.1]} 84. Kf1 {[%clk 0:00:05.8]} 84... Rg2
{[%clk 0:00:13]} 85. Rf7 {[%clk 0:00:05.4]} 85... Rg8 {[%clk 0:00:13.4]} 86. Kf2
{[%clk 0:00:05.1]} 86... Kh1 {[%clk 0:00:13.8]} 87. Kf1 {[%clk 0:00:05.2]} 87...
h2 {[%clk 0:00:14.4]} 88. Kf2 {[%clk 0:00:05.2]} 88... Rg2+ {[%clk 0:00:14.8]}
89. Kf1 {[%clk 0:00:05.4]} 89... Rg1+ {[%clk 0:00:15.7]} 90. Kf2 {[%clk
0:00:05.7]} 90... Rg6 {[%clk 0:00:16.6]} 91. Kf1 {[%clk 0:00:05.8]} 91... Ra6
{[%clk 0:00:17.2]} 92. Kf2 {[%clk 0:00:06]} 92... Ra2+ {[%clk 0:00:17.7]} 93.
Kf1 {[%clk 0:00:06.3]} 93... Ra1+ {[%clk 0:00:18.4]} 94. Kf2 {[%clk 0:00:06.6]}
94... Ra2+ {[%clk 0:00:19.1]} 95. Kf1 {[%clk 0:00:06.9]} 95... Ra3 {[%clk
0:00:20]} 96. Kf2 {[%clk 0:00:07.2]} 96... Ra4 {[%clk 0:00:20.6]} 97. Kf1 {[%clk
0:00:07.5]} 97... Rg4 {[%clk 0:00:21.3]} 98. Kf2 {[%clk 0:00:07.4]} 98... Rg6
{[%clk 0:00:21.9]} 99. Kf1 {[%clk 0:00:07.6]} 99... Rg8 {[%clk 0:00:22.3]} 100.
Kf2 {[%clk 0:00:08]} 100... Ra8 {[%clk 0:00:23]} 101. Kf1 {[%clk 0:00:08.3]}
101... Ra2 {[%clk 0:00:23.7]} 102. Rf8 {[%clk 0:00:07.7]} 102... Rg2 {[%clk
0:00:23.9]} 103. Rf7 {[%clk 0:00:06.6]} 103... Ra2 {[%clk 0:00:24.5]} 104. Rf8
{[%clk 0:00:06.8]} 104... Ra7 {[%clk 0:00:24.7]} 105. Kf2 {[%clk 0:00:06.3]}
105... Ra2+ {[%clk 0:00:25.2]} 106. Kf1 {[%clk 0:00:06.6]} 1/2-1/2

[Event "*** SCC Grand Prix: Titled Tuesday Blitz"]
[Site "Chess.com"]
[Date "2020.10.13"]
[Round "10"]
[White "Beca95"]
[Black "Parhamov"]
[Result "1/2-1/2"]
[WhiteElo "2935"]
[BlackElo "2983"]
[TimeControl "180+1"]
[EndTime "11:49:30 PDT"]
[Termination "Game drawn by agreement"]

1. d4 {[%clk 0:03:00.9]} 1... Nf6 {[%clk 0:02:57.5]} 2. c4 {[%clk 0:03:00.9]}
2... e6 {[%clk 0:02:57.1]} 3. Nf3 {[%clk 0:03:00.1]} 3... d5 {[%clk 0:02:57.1]}
4. Nc3 {[%clk 0:02:59.3]} 4... Bb4 {[%clk 0:02:57.7]} 5. Bg5 {[%clk 0:02:58.4]}
5... dxc4 {[%clk 0:02:52.6]} 6. e4 {[%clk 0:02:57.6]} 6... h6 {[%clk 0:02:52.6]}
7. Bxf6 {[%clk 0:02:57.7]} 7... Qxf6 {[%clk 0:02:53]} 8. Bxc4 {[%clk 0:02:57.5]}
8... c5 {[%clk 0:02:53.3]} 9. O-O {[%clk 0:02:55.8]} 9... cxd4 {[%clk
0:02:53.5]} 10. e5 {[%clk 0:02:56.1]} 10... Qd8 {[%clk 0:02:52.9]} 11. Ne4
{[%clk 0:02:56]} 11... Nc6 {[%clk 0:02:51.8]} 12. a3 {[%clk 0:02:51.8]} 12...
Be7 {[%clk 0:02:51.7]} 13. Qe2 {[%clk 0:02:45.4]} 13... a6 {[%clk 0:02:27.6]}
1/2-1/2

[Event "*** SCC Grand Prix: Titled Tuesday Blitz"]
[Site "Chess.com"]
[Date "2020.10.13"]
[Round "10"]
[White "K_A_S_T_O_R"]
[Black "valeriocarnicelli"]
[Result "1-0"]
[WhiteElo "2724"]
[BlackElo "2573"]
[TimeControl "180+1"]
[EndTime "11:49:36 PDT"]
[Termination "K_A_S_T_O_R won by resignation"]

1. e4 {[%clk 0:03:00.9]} 1... c5 {[%clk 0:02:59.8]} 2. Nf3 {[%clk 0:03:00.2]}
2... Nc6 {[%clk 0:02:59.6]} 3. Bb5 {[%clk 0:02:58.7]} 3... g6 {[%clk 0:02:59.9]}
4. c3 {[%clk 0:02:58.6]} 4... Bg7 {[%clk 0:03:00.1]} 5. d4 {[%clk 0:02:56.9]}
5... cxd4 {[%clk 0:02:59.2]} 6. cxd4 {[%clk 0:02:57.8]} 6... Qb6 {[%clk
0:02:50.3]} 7. Nc3 {[%clk 0:02:55.7]} 7... Nxd4 {[%clk 0:02:45.4]} 8. Nd5 {[%clk
0:02:55.4]} 8... Nxf3+ {[%clk 0:02:42.2]} 9. Qxf3 {[%clk 0:02:53.4]} 9... Qd8
{[%clk 0:02:42.3]} 10. Bf4 {[%clk 0:02:52.3]} 10... e5 {[%clk 0:02:34.9]} 11.
Be3 {[%clk 0:02:43.7]} 11... Nf6 {[%clk 0:02:23.1]} 12. Bg5 {[%clk 0:02:39.3]}
12... Qa5+ {[%clk 0:02:18.9]} 13. b4 {[%clk 0:02:38.6]} 13... Qa3 {[%clk
0:02:04.6]} 14. Qxa3 {[%clk 0:02:36.8]} 1-0

[Event "*** SCC Grand Prix: Titled Tuesday Blitz"]
[Site "Chess.com"]
[Date "2020.10.13"]
[Round "10"]
[White "kidagent"]
[Black "Inga83"]
[Result "0-1"]
[WhiteElo "2285"]
[BlackElo "2407"]
[TimeControl "180+1"]
[EndTime "11:49:55 PDT"]
[Termination "Inga83 won by resignation"]

1. e4 {[%clk 0:03:00.9]} 1... c6 {[%clk 0:02:36.3]} 2. d4 {[%clk 0:03:00.3]}
2... d5 {[%clk 0:02:35.7]} 3. Nd2 {[%clk 0:03:00.9]} 3... dxe4 {[%clk
0:02:35.7]} 4. Nxe4 {[%clk 0:03:01.6]} 4... Nf6 {[%clk 0:02:36.4]} 5. Nxf6+
{[%clk 0:03:01.3]} 5... exf6 {[%clk 0:02:36.6]} 6. c3 {[%clk 0:03:01.1]} 6...
Bd6 {[%clk 0:02:36.9]} 7. Qc2 {[%clk 0:02:59.8]} 7... O-O {[%clk 0:02:37]} 8.
Bd3 {[%clk 0:02:59.8]} 8... h6 {[%clk 0:02:35.9]} 9. Ne2 {[%clk 0:02:58.7]} 9...
Qc7 {[%clk 0:02:33.8]} 10. Be3 {[%clk 0:02:54.4]} 10... c5 {[%clk 0:02:27.3]}
11. O-O-O {[%clk 0:02:52.1]} 11... c4 {[%clk 0:02:26.2]} 12. Be4 {[%clk
0:02:49.3]} 12... Qa5 {[%clk 0:02:26]} 13. Kb1 {[%clk 0:02:47.8]} 13... f5
{[%clk 0:02:26.1]} 14. Bf3 {[%clk 0:02:46.1]} 14... Nc6 {[%clk 0:02:25.5]} 15.
h3 {[%clk 0:02:40]} 15... Re8 {[%clk 0:02:12.9]} 16. g4 {[%clk 0:02:36.1]} 16...
Bd7 {[%clk 0:02:12.7]} 17. gxf5 {[%clk 0:02:31.4]} 17... Bxf5 {[%clk 0:02:11.9]}
0-1

[Event "*** SCC Grand Prix: Titled Tuesday Blitz"]
[Site "Chess.com"]
[Date "2020.10.13"]
[Round "10"]
[White "vovachesss"]
[Black "JoakimVonAnd"]
[Result "1-0"]
[WhiteElo "2674"]
[BlackElo "2491"]
[TimeControl "180+1"]
[EndTime "11:50:02 PDT"]
[Termination "vovachesss won by resignation"]

1. e4 {[%clk 0:03:00.9]} 1... c6 {[%clk 0:02:57.5]} 2. d4 {[%clk 0:02:59.1]}
2... d5 {[%clk 0:02:58.4]} 3. e5 {[%clk 0:02:59.9]} 3... Bf5 {[%clk 0:02:55]} 4.
h4 {[%clk 0:02:58.1]} 4... h5 {[%clk 0:02:53.8]} 5. c4 {[%clk 0:02:58.1]} 5...
e6 {[%clk 0:02:53.8]} 6. Nc3 {[%clk 0:02:58.1]} 6... Ne7 {[%clk 0:02:53.2]} 7.
Nge2 {[%clk 0:02:57]} 7... Nd7 {[%clk 0:02:51.9]} 8. Ng3 {[%clk 0:02:57.4]} 8...
Bg6 {[%clk 0:02:50.5]} 9. Bg5 {[%clk 0:02:51.1]} 9... dxc4 {[%clk 0:02:49.5]}
10. Nge4 {[%clk 0:02:48]} 10... Qc7 {[%clk 0:02:36]} 11. Nd6+ {[%clk 0:02:44.9]}
11... Kd8 {[%clk 0:02:35.9]} 12. Bxc4 {[%clk 0:02:44.1]} 12... Qb6 {[%clk
0:02:22.7]} 13. Bd3 {[%clk 0:02:32.1]} 13... Bxd3 {[%clk 0:02:17.6]} 14. Qxd3
{[%clk 0:02:32.1]} 14... f6 {[%clk 0:02:17.1]} 15. Nf7+ {[%clk 0:02:23.1]} 15...
Kc7 {[%clk 0:02:10.6]} 16. exf6 {[%clk 0:02:21]} 16... gxf6 {[%clk 0:02:09.9]}
17. Bf4+ {[%clk 0:02:21]} 17... e5 {[%clk 0:02:06.7]} 18. dxe5 {[%clk
0:02:21.2]} 18... f5 {[%clk 0:02:07.1]} 19. e6+ {[%clk 0:02:20.7]} 1-0

[Event "*** SCC Grand Prix: Titled Tuesday Blitz"]
[Site "Chess.com"]
[Date "2020.10.13"]
[Round "10"]
[White "szachuspl"]
[Black "orestn"]
[Result "1-0"]
[WhiteElo "2531"]
[BlackElo "2285"]
[TimeControl "180+1"]
[EndTime "11:51:15 PDT"]
[Termination "szachuspl won by resignation"]

1. e4 {[%clk 0:03:00.9]} 1... e5 {[%clk 0:02:59.1]} 2. d4 {[%clk 0:02:57.5]}
2... exd4 {[%clk 0:02:58]} 3. c3 {[%clk 0:02:56.9]} 3... dxc3 {[%clk 0:02:57.7]}
4. Bc4 {[%clk 0:02:56.7]} 4... cxb2 {[%clk 0:02:57.5]} 5. Bxb2 {[%clk
0:02:56.9]} 5... d6 {[%clk 0:02:57]} 6. Nf3 {[%clk 0:02:55.5]} 6... Nc6 {[%clk
0:02:57]} 7. O-O {[%clk 0:02:54.3]} 7... Nh6 {[%clk 0:02:55.1]} 8. Re1 {[%clk
0:02:53]} 8... f6 {[%clk 0:02:53.3]} 9. Nc3 {[%clk 0:02:52]} 9... Nf7 {[%clk
0:02:46.6]} 10. Nd5 {[%clk 0:02:51.7]} 10... Nfe5 {[%clk 0:02:42.6]} 11. Bb3
{[%clk 0:02:51.7]} 11... g6 {[%clk 0:02:36.1]} 12. Nxe5 {[%clk 0:02:48.3]} 12...
fxe5 {[%clk 0:02:30.7]} 13. f4 {[%clk 0:02:48.4]} 13... Bg7 {[%clk 0:02:30.9]}
14. Rc1 {[%clk 0:02:41.5]} 14... Rf8 {[%clk 0:01:51.9]} 15. f5 {[%clk
0:02:37.9]} 15... Rf7 {[%clk 0:01:27.6]} 16. Ne3 {[%clk 0:02:31.4]} 16... Nd4
{[%clk 0:01:15.4]} 17. Bxf7+ {[%clk 0:02:27.7]} 17... Kxf7 {[%clk 0:01:15.4]}
18. Bxd4 {[%clk 0:02:23]} 18... exd4 {[%clk 0:01:15.1]} 19. Qb3+ {[%clk
0:02:23.2]} 19... Kf8 {[%clk 0:01:05.5]} 20. fxg6 {[%clk 0:02:23.2]} 20... hxg6
{[%clk 0:00:58.3]} 21. Rf1+ {[%clk 0:02:23.1]} 21... Bf6 {[%clk 0:00:57]} 22.
Nd5 {[%clk 0:02:23.2]} 1-0

[Event "*** SCC Grand Prix: Titled Tuesday Blitz"]
[Site "Chess.com"]
[Date "2020.10.13"]
[Round "10"]
[White "realmadridtv"]
[Black "MariaFominykh"]
[Result "0-1"]
[WhiteElo "2400"]
[BlackElo "2313"]
[TimeControl "180+1"]
[EndTime "11:51:42 PDT"]
[Termination "MariaFominykh won by resignation"]

1. e4 {[%clk 0:03:00.9]} 1... e6 {[%clk 0:02:56.7]} 2. d4 {[%clk 0:02:56.4]}
2... d5 {[%clk 0:02:56.5]} 3. Nc3 {[%clk 0:02:56.9]} 3... Nf6 {[%clk 0:02:53.7]}
4. Bg5 {[%clk 0:02:55.1]} 4... dxe4 {[%clk 0:02:52.4]} 5. Nxe4 {[%clk
0:02:54.7]} 5... Be7 {[%clk 0:02:52.7]} 6. Bxf6 {[%clk 0:02:53.5]} 6... gxf6
{[%clk 0:02:52.2]} 7. Nf3 {[%clk 0:02:53.3]} 7... f5 {[%clk 0:02:51.9]} 8. Ned2
{[%clk 0:02:52.8]} 8... Nd7 {[%clk 0:02:43.9]} 9. c3 {[%clk 0:02:52.3]} 9... a6
{[%clk 0:02:39.5]} 10. g3 {[%clk 0:02:49.7]} 10... b5 {[%clk 0:02:36.7]} 11. Bg2
{[%clk 0:02:50.4]} 11... Bb7 {[%clk 0:02:36.4]} 12. O-O {[%clk 0:02:51.2]} 12...
O-O {[%clk 0:02:32.5]} 13. a4 {[%clk 0:02:47.7]} 13... c5 {[%clk 0:02:14.8]} 14.
Qe2 {[%clk 0:02:33.9]} 14... Qb6 {[%clk 0:02:01.3]} 15. Ra2 {[%clk 0:02:26.4]}
15... Bd5 {[%clk 0:01:53.7]} 16. c4 {[%clk 0:02:22.1]} 16... bxc4 {[%clk
0:01:49.6]} 17. Nxc4 {[%clk 0:02:22.7]} 17... Qb3 {[%clk 0:01:44.6]} 18. Nce5
{[%clk 0:01:58.3]} 18... Nxe5 {[%clk 0:01:43.7]} 19. Ra3 {[%clk 0:01:49.6]}
19... Nxf3+ {[%clk 0:01:40.6]} 20. Bxf3 {[%clk 0:01:48.8]} 20... Bxf3 {[%clk
0:01:34.9]} 21. Qe5 {[%clk 0:01:35.9]} 21... Qb7 {[%clk 0:01:29.3]} 22. d5
{[%clk 0:01:32]} 22... Qxd5 {[%clk 0:01:25.4]} 0-1